bitfinex/quotes_SOLUSD_20250818
["timestamp","ask_amount","ask_price","bid_price","bid_amount"]
[1755547701666,1e-08,183.18,183.17,64.85940929]
[1755547701868,0.71000001,183.18,183.17,25.35940929]
[1755547702072,0.71000001,183.18,183.17,51.35940929]
[1755547702852,1e-08,183.18,183.17,60.40243285]
[1755547703249,1e-08,183.18,183.17,95.77864842]
[1755547704150,1e-08,183.18,183.17,95.10864842]
[1755547704774,1e-08,183.18,183.17,69.77864842]
[1755547707254,1e-08,183.18,183.17,69.10864842]
[1755547707959,1e-08,183.18,183.17,69.77864842]
[1755547708273,1e-08,183.18,183.17,71.96629342]
[1755547708672,1e-08,183.18,183.17,69.10864842]
[1755547709457,0.71000001,183.18,183.17,80.00243285]
[1755547709657,1e-08,183.18,183.17,80.00243285]
[1755547710081,1e-08,183.18,183.17,95.77864842]
[1755547712270,1e-08,183.18,183.17,86.06562486]
[1755547712460,1e-08,183.18,183.16,2.217765]
[1755547712461,0.71000001,183.18,183.16,5.48961674]
[1755547713186,1e-08,183.18,183.16,5.48961674]
[1755547713371,0.71,183.17,183.16,5.48961674]
[1755547715072,1e-08,183.18,183.17,15.10621557]
[1755547715258,1e-08,183.18,183.17,64.25923913]
[1755547716783,0.06,183.2,183.19,41.10621557]
[1755547716981,0.06,183.2,183.19,95.02805238]
[1755547717156,0.06,183.2,183.19,95.69805238]
[1755547719182,0.06,183.21,183.2,15.10621557]
[1755547719385,0.06,183.24,183.23,41.10621557]
[1755547719565,0.06,183.24,183.23,89.54923913]
[1755547720383,0.06,183.24,183.23,86.24300558]
[1755547721274,0.06,183.24,183.23,91.70062714]
[1755547721681,0.06,183.24,183.23,111.60062714]
[1755547722887,0.06,183.28,183.23,125.94468106]
[1755547723077,0.06,183.28,183.23,125.24468106]
[1755547723281,0.06,183.28,183.27,5.73679001]
[1755547723599,0.06,183.28,183.27,70.51322041]
[1755547723769,0.76,183.28,183.27,64.7764304]
[1755547723969,0.76,183.28,183.27,25.3564304]
[1755547725890,0.06,183.28,183.27,31.09322041]
[1755547727899,0.06,183.28,183.27,46.19943598]
[1755547728104,0.06,183.28,183.27,46.89943598]
[1755547728403,0.06,183.28,183.27,49.08588598]
[1755547728987,0.06,183.28,183.27,46.89943598]
[1755547730202,0.06,183.28,183.27,46.19943598]
[1755547730779,0.06,183.28,183.27,46.89943598]
[1755547732409,0.06,183.3,183.27,46.89943598]
[1755547732586,0.06,183.3,183.29,31.73679001]
[1755547732984,0.06,183.3,183.29,32.43679001]
[1755547733311,0.06,183.3,183.29,31.73679001]
[1755547734399,0.06,183.3,183.29,37.19262502]
[1755547735211,0.06,183.3,183.29,52.29884059]
[1755547735787,0.76,183.3,183.29,91.53884059]
[1755547736218,0.76,183.3,183.29,52.29884059]
[1755547736393,0.76,183.3,183.29,91.53884059]
[1755547736715,0.76,183.3,183.29,39.22]
[1755547737010,0.76,183.3,183.29,59.12]
[1755547737312,0.76,183.3,183.29,19.9]
[1755547737517,0.06,183.3,183.29,59.12]
[1755547737818,0.06,183.3,183.29,79.96300558]
[1755547737995,0.06,183.3,183.29,80.66300558]
[1755547738703,0.06,183.3,183.29,86.11884059]
[1755547741503,0.06,183.3,183.29,79.68205058]
[1755547742003,6.49679001,183.3,183.29,19.9]
[1755547742226,6.49679001,183.3,183.29,25.35583501]
[1755547742386,0.76,183.3,183.29,25.35583501]
[1755547744611,6.49679001,183.3,183.29,25.35583501]
[1755547744813,0.76,183.3,183.29,25.35583501]
[1755547745924,0.76,183.3,183.29,5.45583501]
[1755547747318,6.49679001,183.3,183.29,5.45583501]
[1755547747890,6.49679001,183.3,183.28,44.65604262]
[1755547748093,0.66,183.29,183.28,44.65604262]
[1755547749214,6.39679001,183.29,183.28,39.2]
[1755547749525,6.39679001,183.29,183.27,5.45637107]
[1755547749693,5.73679001,183.28,183.27,5.45637107]
[1755547750020,6.39679001,183.28,183.27,5.45637107]
[1755547750603,0.66,183.28,183.27,5.45637107]
[1755547751094,6.45679001,183.3,183.27,5.45637107]
[1755547751498,0.66,183.29,183.27,5.45637107]
[1755547753199,0.66,183.28,183.27,5.45637107]
[1755547753423,5.73679001,183.29,183.27,5.45637107]
[1755547753627,6.39679001,183.29,183.27,5.45637107]
[1755547754528,5.73679001,183.29,183.27,19.9]
[1755547754716,0.06,183.3,183.27,19.9]
[1755547754717,6.39679001,183.28,183.27,19.9]
[1755547757623,6.39679001,183.28,183.24,25.3873218]
[1755547757934,5.73679001,183.26,183.24,25.3873218]
[1755547758627,5.73679001,183.26,183.25,0.03]
[1755547759029,6.39679001,183.26,183.25,0.03]
[1755547759527,16.17560162,183.26,183.25,0.03]
[1755547759844,25.26115565,183.26,183.25,0.03]
[1755547765429,8.33084749,183.26,183.25,0.03]
[1755547765632,5.73679001,183.26,183.25,0.03]
[1755547768318,6.39679001,183.26,183.25,0.03]
[1755547768518,5.73679001,183.26,183.25,0.03]
[1755547770244,5.73679001,183.26,183.25,0.75]
[1755547770752,3.63591061,183.29,183.25,0.75]
[1755547770753,5.73679001,183.27,183.25,0.75]
[1755547770917,5.73679001,183.27,183.26,0.72]
[1755547772242,5.73679001,183.27,183.25,0.03]
[1755547772626,5.73679001,183.26,183.25,0.03]
[1755547773631,5.73679001,183.26,183.25,0.75]
[1755547774249,5.73679001,183.28,183.25,0.75]
[1755547774437,44.79679001,183.3,183.25,6.48679001]
[1755547774643,0.06,183.3,183.27,5.73679001]
[1755547774962,0.06,183.3,183.28,0.72]
[1755547775126,0.06,183.3,183.28,6.45679001]
[1755547775329,0.06,183.3,183.28,26.72]
[1755547775546,0.06,183.3,183.29,0.72]
[1755547775861,0.06,183.3,183.29,6.17583501]
[1755547777050,0.06,183.3,183.29,5.45583501]
[1755547777545,0.06,183.3,183.29,6.17583501]
[1755547779149,0.06,183.3,183.29,5.45583501]
[1755547779527,0.06,183.3,183.29,6.15583501]
[1755547781448,0.06,183.3,183.29,26.05583501]
[1755547785126,0.06,183.3,183.29,41.16205058]
[1755547787458,0.06,183.3,183.29,80.10205058]
[1755547787868,0.06,183.3,183.29,79.40205058]
[1755547788169,0.75,183.3,183.29,19.9]
[1755547788343,0.06,183.3,183.29,25.35583501]
[1755547788743,0.06,183.3,183.29,19.9]
[1755547790372,0.06,183.3,183.29,85.83884059]
[1755547791462,0.06,183.31,183.3,15.10621557]
[1755547791640,0.06,183.31,183.3,41.44300558]
[1755547791971,0.06,183.32,183.31,20.56145532]
[1755547792162,0.06,183.32,183.31,66.4837693]
[1755547792870,1e-08,183.32,183.31,66.4837693]
[1755547796167,1e-08,183.32,183.31,86.3837693]
[1755547797074,0.2,183.34,183.31,88.5695013]
[1755547797263,0.2,183.34,183.33,46.84300558]
[1755547797574,0.2,183.34,183.33,85.78300558]
[1755547797866,0.2,183.34,183.33,86.48300558]
[1755547798758,0.2,183.34,183.33,91.9376502]
[1755547801657,0.2,183.34,183.33,86.20086019]
[1755547801872,0.2,183.34,183.33,91.2376502]
[1755547802191,0.2,183.34,183.33,111.1376502]
[1755547802687,0.2,183.34,183.33,111.1176502]
[1755547802981,0.2,183.34,183.33,105.38086019]
[1755547804678,0.89,183.34,183.33,66.46086019]
[1755547804992,0.89,183.34,183.33,79.38086019]
[1755547807604,0.2,183.34,183.33,85.8176502]
[1755547808289,0.2,183.34,183.33,79.38086019]
[1755547810063,0.2,183.34,183.33,85.1176502]
[1755547810259,0.2,183.34,183.33,85.8176502]
[1755547811886,0.2,183.34,183.33,111.8176502]
[1755547813570,0.06,183.36,183.34,20.84300558]
[1755547813772,0.06,183.37,183.36,5.73679001]
[1755547813971,0.06,183.37,183.36,11.19054219]
[1755547814184,0.06,183.37,183.36,11.89054219]
[1755547814570,0.06,183.37,183.36,26.99675776]
[1755547815087,0.06,183.38,183.37,26.0]
[1755547815264,0.06,183.38,183.37,70.65679001]
[1755547815461,0.06,183.38,183.37,71.35679001]
[1755547815896,1e-08,183.38,183.37,86.46300558]
[1755547816071,1e-08,183.39,183.38,15.10621557]
[1755547816272,0.66,183.47,183.42,15.10621557]
[1755547816499,0.66,183.47,183.45,5.73679001]
[1755547816684,0.86,183.49,183.46,54.02621557]
[1755547817084,0.66,183.48,183.46,54.02621557]
[1755547817393,0.66,183.47,183.46,54.02621557]
[1755547817569,0.86,183.49,183.46,59.76300558]
[1755547817987,0.86,183.49,183.47,5.45048236]
[1755547818165,0.86,183.49,183.48,38.9]
[1755547818783,0.86,183.49,183.47,38.9]
[1755547818784,6.59679001,183.49,183.47,38.9]
[1755547818994,6.39679001,183.48,183.46,38.9]
[1755547819295,0.66,183.47,183.46,38.9]
[1755547821211,0.66,183.47,183.46,44.35077946]
[1755547821400,6.59679001,183.49,183.46,44.35077946]
[1755547821711,0.86,183.49,183.46,44.35077946]
[1755547821913,0.2,183.49,183.48,20.84300558]
[1755547822203,0.2,183.49,183.48,65.19319088]
[1755547822387,0.2,183.49,183.48,65.89319088]
[1755547823496,0.2,183.49,183.48,65.19319088]
[1755547824472,0.2,183.49,183.48,59.45640087]
[1755547825205,0.2,183.49,183.48,44.3501853]
[1755547825705,0.86,183.49,183.48,58.8]
[1755547825903,6.59679001,183.49,183.48,38.9]
[1755547826093,6.59679001,183.49,183.47,38.88]
[1755547826275,0.66,183.48,183.47,38.88]
[1755547827508,0.66,183.48,183.46,38.88]
[1755547827702,0.2,183.49,183.48,41.10621557]
[1755547827889,0.2,183.49,183.48,85.72300558]
[1755547828499,0.2,183.49,183.48,86.42300558]
[1755547829405,0.2,183.49,183.48,91.87319088]
[1755547831687,0.06,183.51,183.5,15.10621557]
[1755547832002,0.06,183.51,183.5,79.22300558]
[1755547832414,0.06,183.51,183.5,79.92300558]
[1755547833076,0.06,183.51,183.5,85.37259686]
[1755547834786,1e-08,183.51,183.5,66.41755598]
[1755547835123,1e-08,183.51,183.5,65.87259686]
[1755547835290,1e-08,183.51,183.5,68.05594286]
[1755547836309,1e-08,183.51,183.5,29.17594286]
[1755547836501,1e-08,183.51,183.5,68.03594286]
[1755547840517,0.06,183.55,183.53,26.0]
[1755547840714,0.06,183.55,183.54,38.86]
[1755547841428,5.79679001,183.55,183.53,26.0]
[1755547841601,5.79679001,183.55,183.54,38.86]
[1755547842008,5.79679001,183.55,183.52,5.44892953]
[1755547842210,6.41679001,183.54,183.53,38.86]
[1755547842411,0.68,183.54,183.53,38.86]
[1755547843204,0.06,183.55,183.54,15.10621557]
[1755547843429,0.06,183.55,183.54,21.52300558]
[1755547843613,1e-08,183.55,183.54,40.92300557]
[1755547844127,1e-08,183.55,183.54,46.36802057]
[1755547845327,1e-08,183.55,183.54,51.81642418]
[1755547845520,1e-08,183.55,183.54,39.95461917]
[1755547845724,1e-08,183.55,183.54,110.55140918]
[1755547846125,1e-08,183.55,183.54,111.23140918]
[1755547848340,1e-08,183.55,183.54,110.55140918]
[1755547848528,0.68000001,183.55,183.54,89.6884036]
[1755547848913,0.68000001,183.55,183.54,63.6884036]
[1755547849114,6.41679002,183.55,183.52,19.39999999]
[1755547849320,0.68,183.54,183.53,38.84]
[1755547850018,0.68,183.54,183.53,44.28870048]
[1755547851423,0.68,183.54,183.53,5.44870048]
[1755547851626,0.68,183.54,183.53,44.28870048]
[1755547852138,0.68,183.54,183.53,5.44870048]
[1755547852327,0.68,183.54,183.53,63.68870047]
[1755547855120,1e-08,183.55,183.53,63.68870047]
[1755547855320,0.68000001,183.55,183.53,63.68870047]
[1755547855841,0.68,183.54,183.53,63.68870047]
[1755547856516,1e-08,183.55,183.53,63.68870047]
[1755547856836,1e-08,183.55,183.54,21.52300558]
[1755547857042,1e-08,183.55,183.54,46.65979557]
[1755547857840,1e-08,183.55,183.54,47.20463593]
[1755547858423,1e-08,183.55,183.54,52.65303954]
[1755547858636,1e-08,183.57,183.56,41.10621557]
[1755547858843,1e-08,183.57,183.56,85.68300558]
[1755547859158,1e-08,183.57,183.56,86.36300558]
[1755547859829,1e-08,183.57,183.56,91.81081556]
[1755547861230,1e-08,183.57,183.56,111.21081555]
[1755547862139,3.64629374,183.65,183.61,26.0]
[1755547862333,36.2149335,183.75,183.62,38.82]
[1755547862334,0.68,183.63,183.62,38.82]
[1755547863434,0.68,183.63,183.61,19.39999998]
[1755547863641,0.68,183.63,183.62,38.82]
[1755547864931,0.68,183.63,183.61,24.84615019]
[1755547865131,5.73679001,183.64,183.61,24.84615019]
[1755547865351,5.73679001,183.64,183.62,38.82]
[1755547865733,0.68,183.63,183.62,38.82]
[1755547865931,10.06328805,183.66,183.62,44.26602984]
[1755547866150,6.41679001,183.66,183.62,44.26602984]
[1755547866553,0.68,183.65,183.62,44.26602984]
[1755547866741,6.41679001,183.65,183.63,38.82]
[1755547866939,5.73679001,183.65,183.63,38.82]
[1755547867152,0.68,183.64,183.63,38.82]
[1755547867459,0.68,183.64,183.62,24.84602982]
[1755547867460,0.68,183.64,183.62,63.66602982]
[1755547867752,0.72,183.63,183.62,63.66602982]
[1755547870539,9.38328805,183.67,183.62,64.34602982]
[1755547870754,6.45679001,183.66,183.62,63.66602982]
[1755547871055,0.72,183.66,183.62,96.08281983]
[1755547871258,6.45679001,183.68,183.63,0.68]
[1755547871464,0.72,183.67,183.64,38.8]
[1755547872058,0.72,183.67,183.65,5.44514021]
[1755547875262,0.72,183.66,183.65,5.44514021]
[1755547876159,5.73679001,183.68,183.65,5.44514021]
[1755547876345,0.72,183.67,183.65,5.44514021]
[1755547877266,0.72,183.67,183.65,24.84514019]
[1755547877462,6.45679001,183.69,183.65,25.52514019]
[1755547877648,0.72,183.69,183.65,31.2619302]
[1755547877851,0.06,183.71,183.67,15.10621557]
[1755547878059,0.06,183.71,183.68,38.8]
[1755547878547,0.78,183.71,183.69,5.44395448]
[1755547879147,6.51679001,183.71,183.69,5.44395448]
[1755547880262,6.45679001,183.7,183.68,38.8]
[1755547880567,6.45679001,183.69,183.68,38.8]
[1755547880950,6.45679001,183.69,183.68,44.24425087]
[1755547881148,5.73679001,183.69,183.68,5.44425087]
[1755547881359,0.06,183.71,183.68,5.44425087]
[1755547881582,0.06,183.71,183.69,39.46]
[1755547881945,0.06,183.71,183.7,0.68]
[1755547882144,0.06,183.71,183.7,41.12300558]
[1755547883569,0.06,183.71,183.7,46.56666371]
[1755547885849,0.06,183.71,183.7,85.34666371]
[1755547887851,6.45679001,183.76,183.72,20.5492811]
[1755547888045,0.72,183.75,183.73,38.76]
[1755547888250,9.08728539,183.8,183.73,38.76]
[1755547888475,5.73679001,183.77,183.73,58.2]
[1755547888673,6.45679001,183.77,183.73,58.2]
[1755547888873,0.72,183.76,183.73,58.2]
[1755547889267,0.72,183.76,183.74,5.44247305]
[1755547889468,0.72,183.76,183.75,38.76]
[1755547890158,5.73679001,183.77,183.75,38.76]
[1755547890571,6.45679001,183.77,183.75,38.76]
[1755547891489,6.45679001,183.77,183.75,44.20209784]
[1755547891980,0.72,183.76,183.75,44.20209784]
[1755547892593,5.73679001,183.77,183.75,44.20209784]
[1755547892594,6.45679001,183.77,183.75,44.20209784]
[1755547892761,0.72,183.76,183.75,44.20209784]
[1755547893080,5.73679001,183.76,183.75,44.20209784]
[1755547893680,5.73679001,183.76,183.75,63.64209784]
[1755547893866,6.45679001,183.77,183.75,63.64209784]
[1755547895484,0.72,183.77,183.75,63.64209784]
[1755547895659,6.45679001,183.77,183.75,63.64209784]
[1755547895864,5.73679001,183.79,183.75,44.20209784]
[1755547896065,5.73679001,183.79,183.76,0.68]
[1755547896278,5.73679001,183.79,183.77,38.76]
[1755547896482,0.78,183.8,183.77,38.76]
[1755547896483,6.45679001,183.78,183.77,38.76]
[1755547897565,6.45679001,183.78,183.76,38.76]
[1755547897769,6.39679001,183.77,183.74,38.76]
[1755547897973,6.39679001,183.76,183.74,38.76]
[1755547898776,6.39679001,183.75,183.72,50.94297653]
[1755547898985,5.73679001,183.74,183.73,38.74]
[1755547900796,5.73679001,183.74,183.72,31.44297653]
[1755547900797,6.39679001,183.74,183.72,38.74]
[1755547900967,6.39679001,183.73,183.7,15.10621557]
[1755547901168,5.73679001,183.72,183.71,38.74]
[1755547901362,6.39679001,183.73,183.71,38.74]
[1755547902060,6.39679001,183.72,183.69,20.55010326]
[1755547902263,0.66,183.72,183.7,38.74]
[1755547903071,0.66,183.74,183.7,38.74]
[1755547903482,5.73679001,183.71,183.7,38.74]
[1755547903667,5.73679001,183.72,183.7,63.68364226]
[1755547903867,5.73679001,183.72,183.7,58.24]
[1755547904084,6.39679001,183.72,183.7,58.24]
[1755547904496,5.73679001,183.72,183.7,58.24]
[1755547906263,6.39679001,183.72,183.7,19.5]
[1755547906468,6.39679001,183.72,183.7,58.24]
[1755547906977,5.73679001,183.71,183.7,58.24]
[1755547907378,5.73679001,183.72,183.7,58.24]
[1755547907584,5.73679001,183.72,183.7,58.9]
[1755547908768,5.73679001,183.72,183.7,20.16]
[1755547908989,5.73679001,183.72,183.7,58.9]
[1755547909393,6.10252732,183.74,183.7,58.9]
[1755547909568,5.73679001,183.72,183.7,58.9]
[1755547910297,19.33836183,183.81,183.7,63.68360717]
[1755547910473,5.73679001,183.75,183.71,0.66]
[1755547910676,5.73679001,183.75,183.71,20.16]
[1755547910891,5.73679001,183.75,183.72,39.4]
[1755547911197,5.73679001,183.75,183.73,0.66]
[1755547912372,4.31125203,183.77,183.73,6.1027173]
[1755547912570,5.73679001,183.76,183.73,6.1027173]
[1755547913690,5.73679001,183.75,183.72,44.1829745]
[1755547914001,5.73679001,183.75,183.72,44.8429745]
[1755547914373,5.73679001,183.75,183.72,64.3429745]
[1755547914579,5.73679001,183.75,183.73,0.66]
[1755547914778,5.73679001,183.75,183.72,63.6829745]
[1755547915195,5.73679001,183.75,183.72,64.3429745]
[1755547916886,5.73679001,183.75,183.72,63.6829745]
[1755547917096,5.73679001,183.75,183.73,0.66]
[1755547917294,5.73679001,183.75,183.73,6.10270316]
[1755547919808,5.73679001,183.75,183.73,44.82270316]
[1755547919998,5.73679001,183.77,183.74,0.66]
[1755547920313,3.65228109,183.76,183.75,0.66]
[1755547920621,3.65228109,183.76,183.69,34.60621557]
[1755547920622,10.0490711,183.76,183.69,34.60621557]
[1755547920824,11.47358002,183.7,183.66,0.03]
[1755547920990,5.73679001,183.67,183.66,0.03]
[1755547921623,5.73679001,183.67,183.66,0.69]
[1755547922283,5.73679001,183.7,183.67,15.10621557]
[1755547922591,5.73679001,183.69,183.68,0.66]
[1755547923610,9.39770162,183.72,183.69,5.44395448]
[1755547923791,5.73679001,183.72,183.7,0.66]
[1755547923988,2.8395116,183.76,183.69,5.44395448]
[1755547923989,5.73679001,183.71,183.69,38.72]
[1755547924203,5.73679001,183.7,183.69,38.72]
[1755547924617,5.73679001,183.7,183.69,39.38]
[1755547925315,5.73679001,183.7,183.69,44.82395448]
[1755547925812,0.06,183.71,183.7,15.10621557]
[1755547926015,0.06,183.71,183.7,15.76621557]
[1755547926791,0.06,183.71,183.7,21.2098737]
[1755547926990,0.06,183.71,183.7,46.44666371]
[1755547927197,0.06,183.71,183.7,79.4298737]
[1755547927401,0.06,183.71,183.7,78.7698737]
[1755547927593,0.06,183.71,183.7,79.4298737]
[1755547928402,0.06,183.71,183.7,85.16666371]
[1755547929521,0.06,183.71,183.7,79.4298737]
[1755547929698,0.06,183.71,183.7,85.16666371]
[1755547930621,0.06,183.75,183.74,15.10621557]
[1755547930829,0.06,183.75,183.74,53.80621557]
[1755547930997,0.06,183.75,183.74,59.91868862]
[1755547933022,0.06,183.75,183.74,65.65547863]
[1755547933457,0.67,183.83,183.77,46.84300558]
[1755547933658,7.73463161,183.82,183.79,5.73679001]
[1755547933838,7.73463161,183.81,183.8,38.7]
[1755547934252,3.66321528,183.81,183.78,6.40679001]
[1755547934553,3.66321528,183.82,183.79,38.7]
[1755547934756,3.66321528,183.81,183.79,38.7]
[1755547934961,3.66321528,183.82,183.8,5.4406964]
[1755547935135,3.66321528,183.81,183.8,44.1406964]
[1755547935335,3.66321528,183.82,183.8,44.1406964]
[1755547935534,3.66321528,183.81,183.8,44.1406964]
[1755547936439,3.66321528,183.83,183.8,44.1406964]
[1755547936640,3.66321528,183.82,183.8,44.8106964]
[1755547936841,3.66321528,183.84,183.8,44.8106964]
[1755547937044,7.73151955,183.83,183.8,44.8106964]
[1755547937241,3.66321528,183.82,183.8,44.8106964]
[1755547937463,3.66321528,183.83,183.8,44.8106964]
[1755547937660,3.66321528,183.82,183.8,44.8106964]
[1755547937853,3.66321528,183.83,183.8,6.1106964]
[1755547938057,3.66321528,183.83,183.81,44.14032828]
[1755547938058,3.66321528,183.82,183.81,44.14032828]
[1755547938566,3.66321528,183.82,183.81,38.7]
[1755547938764,4.33321528,183.82,183.81,38.7]
[1755547938968,0.67,183.82,183.8,24.88063968]
[1755547939164,0.67,183.82,183.81,38.7]
[1755547939358,0.67,183.82,183.8,19.44]
[1755547939558,0.67,183.82,183.81,38.7]
[1755547939868,0.67,183.82,183.8,63.56066119]
[1755547940239,0.67,183.82,183.8,24.88066119]
[1755547940465,0.67,183.82,183.81,38.68]
[1755547941049,0.67,183.82,183.8,24.88066119]
[1755547941363,0.67,183.82,183.81,38.68]
[1755547941560,3.66321528,183.83,183.8,24.88066119]
[1755547941760,3.66321528,183.83,183.81,44.12029082]
[1755547942149,3.72321528,183.83,183.81,44.12029082]
[1755547942868,0.06,183.83,183.81,44.12029082]
[1755547943944,0.06,183.83,183.81,63.56029082]
[1755547944144,0.06,183.83,183.81,64.23029082]
[1755547946058,0.06,183.83,183.82,15.10621557]
[1755547946447,0.06,183.83,183.82,15.77621557]
[1755547946678,0.06,183.83,183.82,15.10621557]
[1755547947370,0.06,183.83,183.82,53.78621557]
[1755547948276,0.06,183.83,183.82,65.63311003]
[1755547949188,0.06,183.83,183.82,85.07311003]
[1755547950477,0.67,183.92,183.86,15.10621557]
[1755547950778,5.73679001,183.93,183.88,5.73679001]
[1755547950779,0.67,183.93,183.88,5.73679001]
[1755547950979,0.67,183.93,183.89,45.06679001]
[1755547951146,0.67,183.97,183.91,5.73679001]
[1755547951347,0.67,183.96,183.92,53.76621557]
[1755547951553,0.67,183.95,183.92,59.50300558]
[1755547951775,0.67,183.95,183.92,53.76621557]
[1755547952463,0.67,183.95,183.92,64.94007007]
[1755547952862,0.67,183.95,183.92,59.20328006]
[1755547953452,0.67,183.95,183.92,64.94007007]
[1755547953767,5.43513338,183.99,183.92,54.43621557]
[1755547953969,5.43513338,183.99,183.92,60.17300558]
[1755547953970,5.73679001,183.97,183.92,60.17300558]
[1755547954277,6.40679001,183.97,183.92,60.17300558]
[1755547954446,6.40679001,183.97,183.92,59.50300558]
[1755547954648,6.40679001,183.97,183.93,0.67]
[1755547954859,5.73679001,183.95,183.89,26.67]
[1755547955067,0.67,183.94,183.9,15.10621557]
[1755547955254,6.40679001,183.93,183.89,26.0]
[1755547955458,0.67,183.92,183.9,38.66]
[1755547956457,6.40679001,183.91,183.9,19.44]
[1755547956873,6.40679001,183.91,183.85,19.44]
[1755547957174,5.73679001,183.88,183.86,38.66]
[1755547957475,5.73679001,183.87,183.86,38.66]
[1755547957666,26.0,183.94,183.86,58.1]
[1755547957869,6.39679001,183.87,183.85,38.64]
[1755547958084,6.39679001,183.86,183.85,58.08]
[1755547958959,6.39679001,183.86,183.85,19.44]
[1755547959498,5.73679001,183.87,183.85,19.44]
[1755547959656,6.39679001,183.86,183.81,38.67]
[1755547959856,5.73679001,183.83,183.81,38.67]
[1755547960057,5.73679001,183.83,183.81,39.35]
[1755547960257,5.73679001,183.84,183.81,39.35]
[1755547961177,6.39679001,183.84,183.81,38.67]
[1755547961959,5.73679001,183.84,183.81,39.35]
[1755547963084,5.73679001,183.84,183.81,44.79039731]
[1755547963290,5.73679001,183.85,183.81,44.79039731]
[1755547963491,0.66,183.9,183.82,15.78621557]
[1755547963791,6.39679001,183.93,183.87,5.73679001]
[1755547963990,6.39679001,183.93,183.87,45.05679001]
[1755547964568,6.39679001,183.93,183.88,6.41679001]
[1755547964569,0.66,183.93,183.88,6.41679001]
[1755547964775,5.73679001,183.95,183.9,5.73679001]
[1755547964975,6.39679001,183.95,183.91,0.68]
[1755547965184,6.39679001,183.95,183.9,5.73679001]
[1755547965185,6.39679001,183.95,183.9,11.1744036]
[1755547965690,6.39679001,183.95,183.9,11.8544036]
[1755547965866,5.73679001,183.94,183.9,6.11761359]
[1755547966067,6.39679001,183.94,183.9,6.11761359]
[1755547966966,5.73679001,183.92,183.89,38.64]
[1755547967390,0.66,183.91,183.89,38.64]
[1755547967693,5.73679001,183.92,183.89,44.07802744]
[1755547967890,5.73679001,183.93,183.89,44.07802744]
[1755547968089,5.73679001,183.94,183.9,0.68]
[1755547968279,5.73679001,183.94,183.89,50.49481745]
[1755547968480,5.73679001,183.94,183.9,0.68]
[1755547968792,5.73679001,183.94,183.89,44.07802744]
[1755547968969,5.73679001,183.92,183.89,38.64]
[1755547969175,0.66,183.93,183.89,38.64]
[1755547969176,6.39679001,183.91,183.89,38.64]
[1755547969377,5.73679001,183.92,183.89,38.64]
[1755547969884,6.39679001,183.92,183.89,38.64]
[1755547970574,3.69559107,183.97,183.89,44.07797322]
[1755547970763,5.73679001,183.94,183.9,0.68]
[1755547970967,5.73679001,183.94,183.91,0.68]
[1755547971175,5.73679001,183.95,183.91,5.43731149]
[1755547971679,0.66,183.94,183.88,19.44]
[1755547971888,5.73679001,183.9,183.88,19.44]
[1755547972191,5.73679001,183.9,183.87,38.64]
[1755547972790,0.66,183.91,183.87,44.0784134]
[1755547972992,5.73679001,183.9,183.87,39.32]
[1755547973197,5.73679001,183.89,183.87,38.64]
[1755547973486,6.39679001,183.88,183.84,5.4394143]
[1755547973698,5.73679001,183.86,183.85,38.64]
[1755547976602,5.73679001,183.86,183.85,58.08]
[1755547977790,6.39679001,183.86,183.85,19.44]
[1755547977977,6.39679001,183.86,183.82,58.06]
[1755547977978,11.83573668,183.86,183.82,58.06]
[1755547978169,5.73679001,183.83,183.82,58.06]
[1755547979212,0.66,183.87,183.82,58.74]
[1755547979380,5.73679001,183.83,183.82,39.3]
[1755547979988,5.73679001,183.83,183.82,44.74010445]
[1755547980189,5.73679001,183.84,183.82,44.74010445]
[1755547980387,5.73679001,183.84,183.82,39.3]